Workbook

Sheet Кэфы
B4: До следующего обновления цен на рыбу осталось: | E4: =HOUR(TEXT(IF(TEXT(MID(INDEX(Выгрузка!$A:$A,MATCH("Последнее изменение цен было в *",Выгрузка!$A:$A,0),1),32,5)*1+5/24,"ч:мм")*1-(NOW()-TODAY())<0, TEXT(MID(INDEX(Выгрузка!$A:$A,MATCH("Последнее изменение цен было в *",Выгрузка!$A:$A,0),1),32,5)*1+5/24,"ч:мм")*1-(NOW()-TODAY())+1,TEXT(MID(INDEX(Выгрузка!$A:$A,MATCH("Последнее изменение цен было в *",Выгрузка!$A:$A,0),1),32,5)*1+5/24,"ч:мм")*1-(NOW()-TODAY())),"ч:мм"))&"ч "&MINUTE(TEXT(IF(TEXT(MID(INDEX(Выгрузка!$A:$A,MATCH("Последнее изменение цен было в *",Выгрузка!$A:$A,0),1),32,5)*1+5/24,"ч:мм")*1-(NOW()-TODAY())<0, TEXT(MID(INDEX(Выгрузка!$A:$A,MATCH("Последнее изменение цен было в *",Выгрузка!$A:$A,0),1),32,5)*1+5/24,"ч:мм")*1-(NOW()-TODAY())+1,TEXT(MID(INDEX(Выгрузка!$A:$A,MATCH("Последнее изменение цен было в *",Выгрузка!$A:$A,0),1),32,5)*1+5/24,"ч:мм")*1-(NOW()-TODAY())),"ч:мм"))&"мин" -> 2ч 0мин | F4: реального времени
B6: Кит | C6: Шт. | D6: Текущий кэф | E6: Макс. кэф | F6: % от макс.*
B7: Кашалот | C7: =INDEX(Вычисления!$1:$1048576,MATCH($B7,Вычисления!$A:$A,0)-2,5) -> 510 | D7: =IF(C7<=10, "Баг с ценой", VLOOKUP(B7,Вычисления!$A:$E,5,0)) -> 0.8182528962 | E7: =VLOOKUP(B7,Вычисления!$A:$F,6,0) -> 0.8387651598 | F7: =IF(D7="Баг с ценой", "Не продавай!",D7/E7) -> 0.9755446881
B8: Кит горбатый | C8: =INDEX(Вычисления!$1:$1048576,MATCH($B8,Вычисления!$A:$A,0)-2,5) -> 201 | D8: =IF(C8<=10, "Баг с ценой", VLOOKUP(B8,Вычисления!$A:$E,5,0)) -> 1.087217451 | E8: =VLOOKUP(B8,Вычисления!$A:$F,6,0) -> 1.097762493 | F8: =IF(D8="Баг с ценой", "Не продавай!",D8/E8) -> 0.9903940592
B9: Кит горбатый-альбинос | C9: =INDEX(Вычисления!$1:$1048576,MATCH($B9,Вычисления!$A:$A,0)-2,5) -> 186 | D9: =IF(C9<=10, "Баг с ценой", VLOOKUP(B9,Вычисления!$A:$E,5,0)) -> 1.717895506 | E9: =VLOOKUP(B9,Вычисления!$A:$F,6,0) -> 1.733303803 | F9: 0.9911104463
B10: Кит синий северный | C10: =INDEX(Вычисления!$1:$1048576,MATCH($B10,Вычисления!$A:$A,0)-2,5) -> 145 | D10: =IF(C10<=10, "Баг с ценой", VLOOKUP(B10,Вычисления!$A:$E,5,0)) -> 1.434431003 | E10: =VLOOKUP(B10,Вычисления!$A:$F,6,0) -> 1.444440444 | F10: 0.9930703679
B11: Кит серый | C11: =INDEX(Вычисления!$1:$1048576,MATCH($B11,Вычисления!$A:$A,0)-2,5) -> 13 | D11: =IF(C11<=10, "Баг с ценой", VLOOKUP(B11,Вычисления!$A:$E,5,0)) -> 0.9527237966 | E11: =VLOOKUP(B11,Вычисления!$A:$F,6,0) -> 0.9533185801 | F11: 0.9993760915
B12: Кит японский | C12: =INDEX(Вычисления!$1:$1048576,MATCH($B12,Вычисления!$A:$A,0)-2,5) -> 320 | D12: =IF(C12<=10, "Баг с ценой", VLOOKUP(B12,Вычисления!$A:$E,5,0)) -> 2.1335277 | E12: =VLOOKUP(B12,Вычисления!$A:$F,6,0) -> 2.166663499 | F12: 0.9847065318
B13: Сейвал или кит ивасевый | C13: =INDEX(Вычисления!$1:$1048576,MATCH($B13,Вычисления!$A:$A,0)-2,5) -> 106 | D13: =IF(C13<=10, "Баг с ценой", VLOOKUP(B13,Вычисления!$A:$E,5,0)) -> 0.6143773875 | E13: =VLOOKUP(B13,Вычисления!$A:$F,6,0) -> 0.6175119609 | F13: 0.9949238662
B14: Финвал | C14: =INDEX(Вычисления!$1:$1048576,MATCH($B14,Вычисления!$A:$A,0)-2,5) -> 5222 | D14: =IF(C14<=10, "Баг с ценой", VLOOKUP(B14,Вычисления!$A:$E,5,0)) -> 0.7538036657 | E14: =VLOOKUP(B14,Вычисления!$A:$F,6,0) -> 1.004535064 | F14: 0.7504005508
B16: * Показывает в %, насколько текущая цена велика в сравнении с максимальной известной мне. Условные обозначения в виде стрелок и соответствующие значения описаны под таблицей. Изучи их и прими решение о продаже самостоятельно или в соответствии с рекомендациями.
B21: [98% - 100%] Смело продавай, прекрасная цена
B22: [95% - 98%] Тоже отличная цена, но нередко бывает лучше
B23: [90% - 95%] Средняя цена. Лучше придержи и продай позже
B24: [80% - 90%] Плохая цена. Продавай, только если срочно нужны деньги
B25: Ниже 80% Рыба не в цене. Ни в коем случае не продавай

Sheet Выгрузка с сайта (hidden)
A1: Место: | B1: Рыба: | C1: Рыба:2 | D1: Прогресс: | E1: Продано (шт):
A2: 1 | C2: Форель Бива | E2: 0
A3: 2 | C3: Полосатик Омуры | E3: 0
A4: 4 | C4: Сельдь атлантическая | E4: 0
A5: 5 | C5: Вьюн амурский | E5: 0
A6: 6 | C6: Каранкс бронзовый | E6: 0
A7: 7 | C7: Морская свинья обыкновенная | E7: 0
A8: 8 | C8: Кит южный гладкий | E8: 0
A9: 9 | C9: Каранкс Гебера | E9: 0
A10: 10 | C10: Кинжалозуб | E10: 0
A11: 11 | C11: Бэрардиус Бэрда | E11: 0
A12: 12 | C12: Акула мозамбикская бычья | E12: 0
A13: 13 | C13: Морская свинья бесперая | E13: 0
A14: 14 | C14: Рыба луна короткая | E14: 0
A15: 15 | C15: Косаткодельфин | E15: 0
A16: 16 | C16: Пузанок северокаспийский | E16: 0
A17: 17 | C17: Сельдь тихоокеанская | E17: 0
A18: 18 | C18: Сельдь волжская | E18: 0
A19: 19 | C19: Менхэден бразильский | E19: 0
A20: 20 | C20: Сельдь чёшско-печорская | E20: 0
A21: 21 | C21: Эолидия | E21: 0
A22: 23 | C22: Осетр корейский | E22: 0
A23: 32 | C23: Кланкулюс | E23: 0
A24: 33 | C24: Граммистес шестиполосый | E24: 0
A25: 34 | C25: Чешуйчатник | E25: 0
A26: 35 | C26: Семапрохилодус | E26: 0
A27: 36 | C27: Рыба-тряпка | E27: 0
A28: 38 | C28: Тилозур красноморский | E28: 0
A29: 41 | C29: Конус письменный | E29: 0
A30: 42 | C30: Рыба-луна овальная | E30: 0
A31: 43 | C31: Акула сигарная | E31: 0
A32: 44 | C32: Акула скульптурная | E32: 0
A33: 45 | C33: Акула - свинья | E33: 0
A34: 46 | C34: Акула острозубая | E34: 0
A35: 47 | C35: Акула светлохвостая | E35: 0
A36: 48 | C36: Лихия | E36: 0
A37: 49 | C37: Маллисквама | E37: 0
A38: 50 | C38: Камбала двухцветная | E38: 0
A39: 51 | C39: Акула шершавая | E39: 0
A40: 52 | C40: Калкан черноморский | E40: 0
A41: 53 | C41: Кижуч озерный | E41: 0
A42: 55 | C42: Голец узонский | E42: 0
A43: 59 | C43: Акула губастая | E43: 0
A44: 60 | C44: Форель остроголовая | E44: 0
A45: 62 | C45: Осетр тихоокеанский | E45: 0
A46: 63 | C46: Минога сибирская | E46: 0
A47: 64 | C47: Группер Малабарский | E47: 0
A48: 65 | C48: Афалина | E48: 0
A49: 66 | C49: Кит синий альбинос | E49: 0
A50: 68 | C50: Осьминог Думбо | E50: 0
A51: 69 | C51: Косатка малая | E51: 0
A52: 70 | C52: Манта рифовая | E52: 0
A53: 71 | C53: Антимора клюворылая | E53: 0
A54: 72 | C54: Ремнезуб командорский | E54: 0
A55: 73 | C55: Осетр адриатический | E55: 0
A56: 74 | C56: Плиотрема | E56: 0
A57: 75 | C57: Сарпа | E57: 0
A58: 76 | C58: Пилонос японский | E58: 0
A59: 77 | C59: Палтус американский | E59: 0
A60: 78 | C60: Австралийский пилонос | E60: 0
A61: 80 | C61: Змея рисовая | E61: 0
A62: 81 | C62: Центрина Австралийская | E62: 0
A63: 82 | C63: Форель Дональдсона | E63: 0
A64: 83 | C64: Хвостокол кольчатый | E64: 0
A65: 84 | C65: Свистулька голубопятнистая | E65: 0
A66: 89 | C66: Кит Бискайский | E66: 0
A67: 90 | C67: Сферомия пятнистая | E67: 0
A68: 91 | C68: Китовая акула - альбинос | E68: 0
A69: 92 | E69: 0
A70: 93 | C70: Тигровая рыба обыкновенная | E70: 0
A71: 94 | C71: Мелания песчаная | E71: 0
A72: 96 | C72: Лягушка нильская | E72: 0
A73: 97 | C73: Сом жирафовый | E73: 0
A74: 100 | C74: Крылатка-зебра | E74: 0
A75: 101 | C75: Акула свиноглазая | E75: 0
A76: 105 | C76: Принцесса Бурунди | E76: 0
A77: 116 | C77: Кит Акишима | E77: 0
A78: 117 | C78: Скафокогия | E78: 0
A79: 119 | C79: Аулонокара Ньяса | E79: 0
A80: 122 | C80: Королева Танганьики | E80: 0
A81: 124 | C81: Королева Ньяса | E81: 0
A82: 125 | C82: Фахака | E82: 0
A83: 126 | C83: Конус березовый | E83: 0
A84: 127 | C84: Конус дворцовый | E84: 0
A85: 128 | C85: Крокодил нильский | E85: 0
A86: 131 | C86: Конус текстильный | E86: 0
A87: 133 | C87: Конус полосатый | E87: 0
A88: 134 | C88: Конус Мильн-Эдвардса | E88: 0
A89: 135 | C89: Конус мраморный | E89: 0
A90: 146 | C90: Акула - квагга | E90: 0
A91: 149 | C91: Карась-барабан | E91: 0
A92: 150 | C92: Шипощёк длинноперый | E92: 0
A93: 154 | C93: Мурена гигантская | E93: 0
A94: 155 | C94: Скат-орляк пятнистый | E94: 0
A95: 157 | C95: Синодонтис вуалевый | E95: 0
A96: 158 | C96: Велифер | E96: 0
A97: 159 | C97: Аба-аба | E97: 0
A98: 160 | C98: Горгасия красноморская | E98: 0
A99: 161 | C99: Линофрина индийская | E99: 0
A100: 162 | C100: Рыба-кабан трехполосая | E100: 0
A101: 163 | C101: Удильщик Джонсона | E101: 0
A102: 164 | C102: Макрурус вооруженный | E102: 0
A103: 165 | C103: Группер белоокаймленный | E103: 0
A104: 166 | C104: Оксимонокант длиннорылый | E104: 0
A105: 167 | C105: Зубатка синяя | E105: 0
A106: 168 | C106: Креветка северная | E106: 0
A107: 170 | C107: Волютопсиус каштановый | E107: 0
A108: 171 | C108: Необерингиус Фрилея | E108: 0
A109: 174 | C109: Краб вельветовый | E109: 0
A110: 176 | C110: Ремнезуб атлантический | E110: 0
A111: 178 | C111: Ампуллярия | E111: 0
A112: 181 | C112: Хемиодопсис | E112: 0
A113: 183 | C113: Серцевидка | E113: 0
A114: 184 | C114: Морская свинья Далля | E114: 0
A115: 185 | C115: Акула плоскоголовая | E115: 0
A116: 187 | C116: Единорог расписной | E116: 0
A117: 189 | C117: Рыбальдо | E117: 0
A118: 191 | C118: Морская свинья аргентинская | E118: 0
A119: 192 | C119: Нереис | E119: 0
A120: 193 | C120: Буффало большеротый | E120: 0
A121: 195 | C121: Венера воздушная | E121: 0
A122: 197 | C122: Рапана Венозная | E122: 0
A123: 198 | C123: Спинорог золотоплавниковый | E123: 0
A124: 199 | C124: Глаукус | E124: 0
A125: 201 | C125: Ликодонт яванский | E125: 0
A126: 203 | C126: Бисса | E126: 0
A127: 208 | C127: Уару | E127: 0
A128: 209 | C128: Акарихтис Хекеля | E128: 0
A129: 210 | C129: Анаконда | E129: 0
A130: 211 | C130: Акара голубовато-пятнистая | E130: 0
A131: 213 | C131: Кои Платинум Огон | E131: 0
A132: 214 | C132: Гидромедуза бразильская | E132: 0
A133: 215 | C133: Джакунда | E133: 0
A134: 216 | C134: Биара | E134: 0
A135: 218 | C135: Астронотус глаздчатый | E135: 0
A136: 219 | C136: Скат мозаичный | E136: 0
A137: 223 | C137: Осьминог обыкновенный | E137: 0
A138: 224 | C138: Чоп | E138: 0
A139: 225 | C139: Краб Мраморный | E139: 0
A140: 226 | C140: Итальянский усач | E140: 0
A141: 228 | C141: Усач Валецкого | E141: 0
A142: 229 | C142: Дианема полосатохвостая | E142: 0
A143: 230 | C143: Пиранья стройная | E143: 0
A144: 231 | C144: Пирапитинга | E144: 0
A145: 235 | C145: Тегу | E145: 0
A146: 239 | C146: Таедо | E146: 0
A147: 241 | C147: Лепоринус Фредерика | E147: 0
A148: 242 | C148: Колоссома | E148: 0
A149: 243 | C149: Дискус Хеккеля | E149: 0
A150: 245 | C150: Павлиний окунь ленточный | E150: 0
A151: 247 | C151: Милоссома килебрюхая | E151: 0
A152: 248 | C152: Метиннис пятнистый | E152: 0
A153: 249 | C153: Милеус ленточный | E153: 0
A154: 250 | C154: Форель апачей | E154: 0
A155: 251 | C155: Губка-лира | E155: 0
A156: 252 | C156: Клюворыл Шепарда | E156: 0
A157: 253 | C157: Ремнезуб перуанский | E157: 0
A158: 254 | C158: Тауматихт Акселя | E158: 0
A159: 255 | C159: Пирарара | E159: 0
A160: 256 | C160: Скат акулохвостый | E160: 0
A161: 257 | C161: Носорог пятнистый | E161: 0
A162: 258 | C162: Матамата | E162: 0
A163: 259 | C163: Лазианциструс | E163: 0
A164: 261 | C164: Скат гладкий | E164: 0
A165: 262 | C165: Саблезуб | E165: 0
A166: 263 | C166: Макропинна | E166: 0
A167: 264 | C167: Рыба-капля | E167: 0
A168: 265 | C168: Пиранья крапчатая | E168: 0
A169: 266 | C169: Акула Мицукури | E169: 0
A170: 267 | C170: Черный нож | E170: 0
A171: 269 | C171: Алепизавр | E171: 0
A172: 270 | C172: Пайара | E172: 0
A173: 271 | C173: Катран вануатский | E173: 0
A174: 272 | C174: Багре хигучи | E174: 0
A175: 273 | C175: Рыба-ремень, сельдяной король | E175: 0
A176: 274 | C176: Акула черная (Далатия) | E176: 0
A177: 275 | C177: Краб-йети | E177: 0
A178: 276 | C178: Мегалодон | E178: 0
A179: 277 | C179: Голец дальнеозерский | E179: 0
A180: 278 | C180: Хирург-Ахиллес | E180: 0
A181: 279 | C181: Акула эполетовая | E181: 0
A182: 280 | C182: Мешкорот | E182: 0
A183: 281 | C183: Галаксия чилийская | E183: 0
A184: 282 | C184: Чешуеед, Плагиотрем чешуеедный | E184: 0
A185: 283 | C185: Рыба-сабля | E185: 0
A186: 284 | C186: Акула плащеносная | E186: 0
A187: 285 | C187: Жемчужная рыба | E187: 0
A188: 286 | C188: Акула светящаяся | E188: 0
A189: 287 | C189: Акулеола черная | E189: 0
A190: 288 | C190: Акула-домовой | E190: 0
A191: 289 | C191: Кайман широкомордый | E191: 0
A192: 290 | C192: Кои Асаги | E192: 0
A193: 291 | C193: Бельдюга Андрияшева | E193: 0
A194: 293 | E194: 0
A195: 294 | C195: Костерь | E195: 0
A196: 296 | E196: 0
A197: 297 | E197: 0
A198: 298 | E198: 0
A199: 299 | E199: 0
A200: 300 | E200: 0
... 1265 more rows

Sheet Выгрузка (hidden)
A1: Серверы
A2: Вход или регистрация
A3: Войти Регистрация Забыли пароль? Не пришел пароль?
A4: Загрузить
A5: Загрузить игру
A6: Обои на рабочий стол
A7: Новости
A8: Турниры
A9: Регулярные турниры
A10: Big Game Fishing
A11: Рейтинги
A12: Рейтинги игроков
A13: Таблица рекордов
A14: Командный турнирный рейтинг
A15: Командный дуэльный рейтинг
A16: Справочник
A17: Статистика сервера
A18: Цены на рыбу
A19: Список рыбы
A20: Список предметов
A21: Список водоемов
A22: Вопросы и ответы
A23: Мобильная версия
A24: Загрузить игру МРР
A25: Помощь и советы МРР
A26: Таблица рекордов МРР
A27: Цены на рыбу МРР
A28: Карта сервера МРР
A29: Расписание турниров МРР
A30: Рейтинги игроков МРР
A31: Рейтинг команд МРР
A32: Разработка
A33: Сообщество
A34: Форум
A35: Социальные сети
A36: Главная »
A37: Цены на рыбу
A39: Цены на рыбу
A41: Стоимость рыбы меняется каждые 5 реальных часов. Чем больше продают данную рыбу, тем меньше она стоит.
A43: Ниже представлен спрос на рыбу в порядке убывания.
A44: Последнее изменение цен было в 17:57 МСК.
A45: Место: | B45: Рыба: | D45: Прогресс: | E45: Продано (шт):
A46: 1 | C46: Форель Бива | E46: 0
A47: 2 | C47: Полосатик Омуры | E47: 0
A48: 3 | C48: Кит северный гладкий | E48: 2
A49: 4 | C49: Сельдь атлантическая | E49: 0
A50: 5 | C50: Вьюн амурский | E50: 0
A51: 6 | C51: Каранкс бронзовый | E51: 0
A52: 7 | C52: Морская свинья обыкновенная | E52: 0
A53: 8 | C53: Кит южный гладкий | E53: 0
A54: 9 | C54: Каранкс Гебера | E54: 0
A55: 10 | C55: Кинжалозуб | E55: 0
A56: 11 | C56: Бэрардиус Бэрда | E56: 0
A57: 12 | C57: Акула мозамбикская бычья | E57: 0
A58: 13 | C58: Морская свинья бесперая | E58: 0
A59: 14 | C59: Рыба луна короткая | E59: 0
A60: 15 | C60: Косаткодельфин | E60: 0
A61: 16 | C61: Пузанок северокаспийский | E61: 0
A62: 17 | C62: Сельдь тихоокеанская | E62: 0
A63: 18 | C63: Сельдь волжская | E63: 0
A64: 19 | C64: Менхэден бразильский | E64: 0
A65: 20 | C65: Сельдь чёшско-печорская | E65: 0
A66: 21 | C66: Эолидия | E66: 0
A67: 22 | C67: Поллимир Исидора | E67: 30
A68: 23 | C68: Осетр корейский | E68: 0
A69: 24 | C69: Акула рифовая | E69: 1
A70: 25 | C70: Группер таувина | E70: 2
A71: 26 | C71: Каранг золотой | E71: 4
A72: 27 | C72: Убанги | E72: 10
A73: 28 | C73: Тиляпия нильская | E73: 47
A74: 29 | C74: Хемихромис-красавец | E74: 70
A75: 30 | C75: Алеста | E75: 73
A76: 31 | C76: Цитарина обыкновенная | E76: 39
A77: 32 | C77: Кланкулюс | E77: 0
A78: 33 | C78: Граммистес шестиполосый | E78: 0
A79: 34 | C79: Чешуйчатник | E79: 0
A80: 35 | C80: Семапрохилодус | E80: 0
A81: 36 | C81: Рыба-тряпка | E81: 0
A82: 37 | C82: Тунец скумбриевидный | E82: 34
A83: 38 | C83: Тилозур красноморский | E83: 0
A84: 39 | C84: Бычеглаз-хамрур | E84: 6
A85: 40 | C85: Мурджан | E85: 46
A86: 41 | C86: Конус письменный | E86: 0
A87: 42 | C87: Рыба-луна овальная | E87: 0
A88: 43 | C88: Акула сигарная | E88: 0
A89: 44 | C89: Акула скульптурная | E89: 0
A90: 45 | C90: Акула - свинья | E90: 0
A91: 46 | C91: Акула острозубая | E91: 0
A92: 47 | C92: Акула светлохвостая | E92: 0
A93: 48 | C93: Лихия | E93: 0
A94: 49 | C94: Маллисквама | E94: 0
A95: 50 | C95: Камбала двухцветная | E95: 0
A96: 51 | C96: Акула шершавая | E96: 0
A97: 52 | C97: Калкан черноморский | E97: 0
A98: 53 | C98: Кижуч озерный | E98: 0
A99: 54 | C99: Корюшка озерная малоротая | E99: 44
A100: 55 | C100: Голец узонский | E100: 0
A101: 56 | C101: Голец длинноголовый | E101: 3
A102: 57 | C102: Голец носатый | E102: 2
A103: 58 | C103: Хариус Камчатский | E103: 14
A104: 59 | C104: Акула губастая | E104: 0
A105: 60 | C105: Форель остроголовая | E105: 0
A106: 61 | C106: Нерка карликовая | E106: 1
A107: 62 | C107: Осетр тихоокеанский | E107: 0
A108: 63 | C108: Минога сибирская | E108: 0
A109: 64 | C109: Группер Малабарский | E109: 0
A110: 65 | C110: Афалина | E110: 0
A111: 66 | C111: Кит синий альбинос | E111: 0
A112: 67 | C112: Токсабрамис | E112: 2
A113: 68 | C113: Осьминог Думбо | E113: 0
A114: 69 | C114: Косатка малая | E114: 0
A115: 70 | C115: Манта рифовая | E115: 0
A116: 71 | C116: Антимора клюворылая | E116: 0
A117: 72 | C117: Ремнезуб командорский | E117: 0
A118: 73 | C118: Осетр адриатический | E118: 0
A119: 74 | C119: Плиотрема | E119: 0
A120: 75 | C120: Сарпа | E120: 0
A121: 76 | C121: Пилонос японский | E121: 0
A122: 77 | C122: Палтус американский | E122: 0
A123: 78 | C123: Австралийский пилонос | E123: 0
A124: 79 | C124: Семга Камчатская | E124: 1
A125: 80 | C125: Змея рисовая | E125: 0
A126: 81 | C126: Центрина Австралийская | E126: 0
A127: 82 | C127: Форель Дональдсона | E127: 0
A128: 83 | C128: Хвостокол кольчатый | E128: 0
A129: 84 | C129: Свистулька голубопятнистая | E129: 0
A130: 85 | C130: Скорпенопсис дьявольский | E130: 3
A131: 86 | C131: Неалот | E131: 1
A132: 87 | C132: Мена пятнистая | E132: 7
A133: 88 | C133: Мурена перечная | E133: 1
A134: 89 | C134: Кит Бискайский | E134: 0
A135: 90 | C135: Сферомия пятнистая | E135: 0
A136: 91 | C136: Китовая акула - альбинос | E136: 0
A137: 92 | E137: 0
A138: 93 | C138: Тигровая рыба обыкновенная | E138: 0
A139: 94 | C139: Мелания песчаная | E139: 0
A140: 95 | C140: Мормиропс угревидный | E140: 10
A141: 96 | C141: Лягушка нильская | E141: 0
A142: 97 | C142: Сом жирафовый | E142: 0
A143: 98 | C143: Карп африканский | E143: 4
A144: 99 | C144: Бородавчатка красноморская | E144: 1
A145: 100 | C145: Крылатка-зебра | E145: 0
A146: 101 | C146: Акула свиноглазая | E146: 0
A147: 102 | C147: Полиптер | E147: 1
A148: 103 | C148: Семутунду | E148: 9
A149: 104 | C149: Аристохромис Кpucmu | E149: 12
A150: 105 | C150: Принцесса Бурунди | E150: 0
A151: 106 | C151: Псевдотрофеус Демасони | E151: 3
A152: 107 | C152: Офтальмотиляпия носатая | E152: 14
A153: 108 | C153: Лабидохромис Хонги | E153: 2
A154: 109 | C154: Лаванда Мбуна | E154: 25
A155: 110 | C155: Тиляпия красногрудая | E155: 28
A156: 111 | C156: Тиляпия мозамбикская | E156: 2
A157: 112 | C157: Фея перламутровая | E157: 26
A158: 113 | C158: Сардина танганьикская | E158: 15
A159: 114 | C159: Летрин длиннорылый | E159: 1
A160: 115 | C160: Бычок краснозубый | E160: 17
A161: 116 | C161: Кит Акишима | E161: 0
A162: 117 | C162: Скафокогия | E162: 0
A163: 118 | C163: Аулонокара Бенша | E163: 6
A164: 119 | C164: Аулонокара Ньяса | E164: 0
A165: 120 | C165: Лабеотрофеус обыкновенный | E165: 6
A166: 121 | C166: Лабидохромис большой | E166: 12
A167: 122 | C167: Королева Танганьики | E167: 0
A168: 123 | C168: Клоун танганьикский | E168: 9
A169: 124 | C169: Королева Ньяса | E169: 0
A170: 125 | C170: Фахака | E170: 0
A171: 126 | C171: Конус березовый | E171: 0
A172: 127 | C172: Конус дворцовый | E172: 0
A173: 128 | C173: Крокодил нильский | E173: 0
A174: 129 | C174: Луциан горбатый | E174: 1
A175: 130 | C175: Плоскоголов пятнистый | E175: 2
A176: 131 | C176: Конус текстильный | E176: 0
A177: 132 | C177: Вунду | E177: 9
A178: 133 | C178: Конус полосатый | E178: 0
A179: 134 | C179: Конус Мильн-Эдвардса | E179: 0
A180: 135 | C180: Конус мраморный | E180: 0
A181: 136 | C181: Башир | E181: 21
A182: 137 | C182: Ящероголов красный | E182: 26
A183: 138 | C183: Скат тэниура лимма | E183: 4
A184: 139 | C184: Тиляпия галилейская | E184: 24
A185: 140 | C185: Собачка речная | E185: 48
A186: 141 | C186: Нильский окунь | E186: 5
A187: 142 | C187: Тигровая рыба нильская | E187: 24
A188: 143 | C188: Сом электрический | E188: 11
A189: 144 | C189: Шильб полосатый | E189: 21
A190: 145 | C190: Баяд | E190: 6
A191: 146 | C191: Акула - квагга | E191: 0
A192: 147 | C192: Луциан - Бохар | E192: 4
A193: 148 | C193: Тунец индо-тихоокеанский | E193: 7
A194: 149 | C194: Карась-барабан | E194: 0
A195: 150 | C195: Шипощёк длинноперый | E195: 0
A196: 151 | C196: Карась морской чернополосый | E196: 5
A197: 152 | C197: Группер красноротый | E197: 1
A198: 153 | C198: Протоптер мраморный | E198: 16
A199: 154 | C199: Мурена гигантская | E199: 0
A200: 155 | C200: Скат-орляк пятнистый | E200: 0
A201: 156 | C201: Скат-торпедо электрический | E201: 1
A202: 157 | C202: Синодонтис вуалевый | E202: 0
A203: 158 | C203: Велифер | E203: 0
... 1347 more rows

Sheet Вычисления (hidden)
B2: Продано (нижняя строка) | C2: 16096 | D2: 12734 | E2: =VLOOKUP(MAX(Table_0[Место:]),'Выгрузка с сайта'!$A:$E,5,0) -> 16096
B3: Продано (целевая рыба) | C3: 5222 | D3: 614 | E3: =VLOOKUP($A$5,'Выгрузка с сайта'!$C:$E,3,0) -> 5222
B4: х | C4: =1 - C3/C2 -> 0.6755715706 | D4: =1 - D3/D2 -> 0.9517826292 | E4: =1 - E3/E2 -> 0.6755715706 | F4: 1
A5: Финвал | B5: Кэф ( f(x) = ax + b) | C5: 0.7538036657 | D5: 0.9672707321 | E5: =E7*E4+E6 -> 0.7538036657 | F5: =F7*F4+F6 -> 1.004535064
B6: b | C6: =C5-C7*C4 -> 0.2316946594 | D6: =D5-D7*D4 -> 0.2316946594 | E6: =D6 -> 0.2316946594 | F6: =E6 -> 0.2316946594
B7: a | C7: =($C$5-$D$5)/($C$4-$D$4) -> 0.7728404051 | D7: =($C$5-$D$5)/($C$4-$D$4) -> 0.7728404051 | E7: =D7 -> 0.7728404051 | F7: =E7 -> 0.7728404051
B9: Продано (нижняя строка) | C9: 4282 | D9: 4915 | E9: =VLOOKUP(MAX(Table_0[Место:]),'Выгрузка с сайта'!$A:$E,5,0) -> 16096
B10: Продано (целевая рыба) | C10: 30 | D10: 2819 | E10: =VLOOKUP($A$12,'Выгрузка с сайта'!$C:$E,3,0) -> 201
B11: х | C11: =1 - C10/C9 -> 0.9929939281 | D11: =1 - D10/D9 -> 0.4264496439 | E11: =1 - E10/E9 -> 0.9875124254 | F11: 1
A12: Кит Горбатый | B12: Кэф ( f(x) = ax + b) | C12: 1.091846266 | D12: 0.6134320665 | E12: =E14*E11+E13 -> 1.087217451 | F12: =F14*F11+F13 -> 1.097762493
B13: b | C13: =C12-C14*C11 -> 0.2533197665 | D13: =D12-D14*D11 -> 0.2533197665 | E13: =D13 -> 0.2533197665 | F13: =E13 -> 0.2533197665
B14: a | C14: =($C$12-$D$12)/($C$11-$D$11) -> 0.8444427263 | D14: =($C$12-$D$12)/($C$11-$D$11) -> 0.8444427263 | E14: =D14 -> 0.8444427263 | F14: =E14 -> 0.8444427263
B16: Продано (нижняя строка) | C16: 12730 | D16: 4915 | E16: =VLOOKUP(MAX(Table_0[Место:]),'Выгрузка с сайта'!$A:$E,5,0) -> 16096
B17: Продано (целевая рыба) | C17: 58 | D17: 1143 | E17: =VLOOKUP($A$19,'Выгрузка с сайта'!$C:$E,3,0) -> 145
B18: х | C18: =1 - C17/C16 -> 0.9954438335 | D18: =1 - D17/D16 -> 0.7674465921 | E18: =1 - E17/E16 -> 0.9909915507 | F18: 1
A19: Кит синий северный | B19: Кэф ( f(x) = ax + b) | C19: 1.43937801 | D19: 1.186046408 | E19: =E21*E18+E20 -> 1.434431003 | F19: =F21*F18+F20 -> 1.444440444
B20: b | C20: =C19-C21*C18 -> 0.333323481 | D20: =D19-D21*D18 -> 0.333323481 | E20: =D20 -> 0.333323481 | F20: =E20 -> 0.333323481
B21: a | C21: =($C$19-$D$19)/($C$18-$D$18) -> 1.111116963 | D21: =($C$19-$D$19)/($C$18-$D$18) -> 1.111116963 | E21: =D21 -> 1.111116963 | F21: =E21 -> 1.111116963
B23: Продано (нижняя строка) | C23: 16096 | D23: 12734 | E23: =VLOOKUP(MAX(Table_0[Место:]),'Выгрузка с сайта'!$A:$E,5,0) -> 16096
B24: Продано (целевая рыба) | C24: 510 | D24: 340 | E24: =VLOOKUP($A$26,'Выгрузка с сайта'!$C:$E,3,0) -> 510
B25: х | C25: =1 - C24/C23 -> 0.9683151093 | D25: =1 - D24/D23 -> 0.9732998272 | E25: =1 - E24/E23 -> 0.9683151093 | F25: 1
A26: Кашалот | B26: Кэф ( f(x) = ax + b) | C26: 0.8182528962 | D26: 0.8214799185 | E26: =E28*E25+E27 -> 0.8182528962 | F26: =F28*F25+F27 -> 0.8387651598
B27: b | C27: =C26-C28*C25 -> 0.191382034 | D27: =D26-D28*D25 -> 0.191382034 | E27: =D27 -> 0.191382034 | F27: =E27 -> 0.191382034
B28: a | C28: =($C$26-$D$26)/($C$25-$D$25) -> 0.6473831258 | D28: =($C$26-$D$26)/($C$25-$D$25) -> 0.6473831258 | E28: =D28 -> 0.6473831258 | F28: =E28 -> 0.6473831258
B30: Продано (нижняя строка) | C30: 12730 | D30: 4915 | E30: =VLOOKUP(MAX(Table_0[Место:]),'Выгрузка с сайта'!$A:$E,5,0) -> 16096
B31: Продано (целевая рыба) | C31: 52 | D31: 455 | E31: =VLOOKUP($A$33,'Выгрузка с сайта'!$C:$E,3,0) -> 186
B32: х | C32: =1 - C31/C30 -> 0.995915161 | D32: =1 - D31/D30 -> 0.9074262462 | E32: =1 - E31/E30 -> 0.988444334 | F32: 1
A33: Кит горбатый-альбинос | B33: Кэф ( f(x) = ax + b) | C33: 1.727857089 | D33: 1.609866182 | E33: =E35*E32+E34 -> 1.717895506 | F33: =F35*F32+F34 -> 1.733303803
B34: b | C34: =C33-C35*C32 -> 0.3999062056 | D34: =D33-D35*D32 -> 0.3999062056 | E34: =D34 -> 0.3999062056 | F34: =E34 -> 0.3999062056
B35: a | C35: =($C$33-$D$33)/($C$32-$D$32) -> 1.333397598 | D35: =($C$33-$D$33)/($C$32-$D$32) -> 1.333397598 | E35: =D35 -> 1.333397598 | F35: =E35 -> 1.333397598
B37: Продано (нижняя строка) | C37: 12730 | D37: 4915 | E37: =VLOOKUP(MAX(Table_0[Место:]),'Выгрузка с сайта'!$A:$E,5,0) -> 16096
B38: Продано (целевая рыба) | C38: 13 | D38: 16 | E38: =VLOOKUP($A$40,'Выгрузка с сайта'!$C:$E,3,0) -> 13
B39: х | C39: =1 - C38/C37 -> 0.9989787903 | D39: =1 - D38/D37 -> 0.9967446592 | E39: =1 - E38/E37 -> 0.9991923459 | F39: 1
A40: Кит серый | B40: Кэф ( f(x) = ax + b) | C40: 0.952566527 | D40: 0.950921238 | E40: =E42*E39+E41 -> 0.9527237966 | F40: =F42*F39+F41 -> 0.9533185801
B41: b | C41: =C40-C42*C39 -> 0.2168850573 | D41: =D40-D42*D39 -> 0.2168850573 | E41: =D41 -> 0.2168850573 | F41: =E41 -> 0.2168850573
B42: a | C42: =($C$40-$D$40)/($C$39-$D$39) -> 0.7364335228 | D42: =($C$40-$D$40)/($C$39-$D$39) -> 0.7364335228 | E42: =D42 -> 0.7364335228 | F42: =E42 -> 0.7364335228
B44: Продано (нижняя строка) | C44: 12730 | D44: 4915 | E44: =VLOOKUP(MAX(Table_0[Место:]),'Выгрузка с сайта'!$A:$E,5,0) -> 16096
B45: Продано (целевая рыба) | C45: 23 | D45: 303 | E45: =VLOOKUP($A$47,'Выгрузка с сайта'!$C:$E,3,0) -> 320
B46: х | C46: =1 - C45/C44 -> 0.9981932443 | D46: =1 - D45/D44 -> 0.9383519837 | E46: =1 - E45/E44 -> 0.9801192843 | F46: 1
A47: Кит японский | B47: Кэф ( f(x) = ax + b) | C47: 2.163652124 | D47: 2.063912857 | E47: =E49*E46+E48 -> 2.1335277 | F47: =F49*F46+F48 -> 2.166663499
B48: b | C48: =C47-C49*C46 -> 0.4999327935 | D48: =D47-D49*D46 -> 0.4999327935 | E48: =D48 -> 0.4999327935 | F48: =E48 -> 0.4999327935
B49: a | C49: =($C$47-$D$47)/($C$46-$D$46) -> 1.666730706 | D49: =($C$47-$D$47)/($C$46-$D$46) -> 1.666730706 | E49: =D49 -> 1.666730706 | F49: =E49 -> 1.666730706
B51: Продано (нижняя строка) | C51: 12730 | D51: 4915 | E51: =VLOOKUP(MAX(Table_0[Место:]),'Выгрузка с сайта'!$A:$E,5,0) -> 16096
B52: Продано (целевая рыба) | C52: 199 | D52: 117 | E52: =VLOOKUP($A$54,'Выгрузка с сайта'!$C:$E,3,0) -> 106
B53: х | C53: =1 - C52/C51 -> 0.9843676355 | D53: =1 - D52/D51 -> 0.9761953204 | E53: =1 - E52/E51 -> 0.9934145129 | F53: 1
A54: Сейвал или кит ивасевый | B54: Кэф ( f(x) = ax + b) | C54: 0.6100712367 | D54: 0.6061813617 | E54: =E56*E53+E55 -> 0.6143773875 | F54: =F56*F53+F55 -> 0.6175119609
B55: b | C55: =C54-C56*C53 -> 0.1415299546 | D55: =D54-D56*D53 -> 0.1415299546 | E55: =D55 -> 0.1415299546 | F55: =E55 -> 0.1415299546
B56: a | C56: =($C$54-$D$54)/($C$53-$D$53) -> 0.4759820063 | D56: =($C$54-$D$54)/($C$53-$D$53) -> 0.4759820063 | E56: =D56 -> 0.4759820063 | F56: =E56 -> 0.4759820063
